fUSD/lending_fUSD_20240803
["ID","MTS","AMOUNT","RATE_DAILY","PERIOD"]
[334001940,1722672659204,-500.0,0.00016986,2]
[334001941,1722672659213,-1519.4,0.00016986,2]
[334001942,1722672659222,-500.0,0.00016986,2]
[334001943,1722672659231,-500.0,0.00016986,2]
[334001944,1722672659241,-500.0,0.00016986,2]
[334001945,1722672659250,-500.0,0.00016986,2]
[334001946,1722672659260,-500.0,0.00016986,2]
[334001947,1722672659269,-590.53018624,0.00016986,2]
[334001948,1722672659279,-500.0,0.00016986,2]
[334001949,1722672659288,-684.44,0.00016986,2]
[334001950,1722672659298,-500.0,0.00016986,2]
[334001951,1722672659307,-500.0,0.00016986,2]
[334001952,1722672659316,-500.0,0.00016986,2]
[334001953,1722672659325,-517.6520782,0.00016986,2]
[334001954,1722672659335,-170.4434659,0.00016986,2]
[334001955,1722672659344,-500.0,0.00016986,2]
[334001956,1722672659354,-500.0,0.00016986,2]
[334001957,1722672659363,-584.67,0.00016986,2]
[334001958,1722672659372,-604.12,0.00016986,2]
[334001959,1722672659381,-528.36,0.00016986,2]
[334001960,1722672659391,-616.8,0.00016986,2]
[334001961,1722672659401,-509.55773768,0.00016986,2]
[334001962,1722672659410,-500.0,0.00016986,2]
[334001963,1722672659420,-500.0,0.00016986,2]
[334001964,1722672659429,-500.0,0.00016986,2]
[334001965,1722672659439,-500.0,0.00016986,2]
[334001966,1722672659449,-509.32,0.00016986,2]
[334001967,1722672659458,-500.0,0.00016986,2]
[334001968,1722672659468,-500.0,0.00016986,2]
[334001969,1722672659478,-743.5,0.00016986,2]
[334001970,1722672659487,-1060.37,0.00016986,2]
[334001971,1722672659497,-500.0,0.00016986,2]
[334001972,1722672659511,-500.0,0.00016986,2]
[334001973,1722672659520,-500.0,0.00016986,2]
[334001974,1722672659529,-774.18,0.00016986,2]
[334001975,1722672659539,-848.13,0.00016986,2]
[334001976,1722672659550,-712.98,0.00016986,2]
[334001977,1722672659559,-500.0,0.00016986,2]
[334001978,1722672659569,-772.65,0.00016986,2]
[334001979,1722672659581,-744.14,0.00016986,2]
[334001980,1722672659590,-500.0,0.00016986,2]
[334001981,1722672659600,-500.0,0.00016986,2]
[334001982,1722672659609,-500.0,0.00016986,2]
[334001983,1722672659620,-500.0,0.00016986,2]
[334001984,1722672659630,-341.26313213,0.00016986,2]
[334001985,1722672659640,-500.0,0.00016986,2]
[334001986,1722672659649,-958.9,0.00016986,2]
[334001987,1722672659659,-500.0,0.00016986,2]
[334001988,1722672659669,-500.0,0.00016986,2]
[334001989,1722672659678,-1086.35,0.00016986,2]
[334001990,1722672659687,-500.0,0.00016986,2]
[334001991,1722672659697,-500.0,0.00016986,2]
[334001992,1722672659706,-500.0,0.00016986,2]
[334001993,1722672659716,-500.0,0.00016986,2]
[334001994,1722672659725,-500.0,0.00016986,2]
[334001995,1722672659735,-879.02,0.00016986,2]
[334001996,1722672659744,-1083.8,0.00016986,2]
[334001997,1722672659754,-500.0,0.00016986,2]
[334001998,1722672659763,-275.77669271,0.00016986,2]
[334001999,1722672659773,-500.0,0.00016986,2]
[334002000,1722672659782,-500.0,0.00016986,2]
[334002001,1722672659792,-502.1502775,0.00016986,2]
[334002002,1722672659801,-515.45,0.00016986,2]
[334002003,1722672659811,-500.0,0.00016986,2]
[334002004,1722672659820,-500.0,0.00016986,2]
[334002005,1722672659830,-582.42,0.00016986,2]
[334002006,1722672659839,-500.0,0.00016986,2]
[334002007,1722672659849,-500.0,0.00016986,2]
[334002008,1722672659860,-500.0,0.00016986,2]
[334002009,1722672659870,-500.0,0.00016986,2]
[334002010,1722672659879,-500.0,0.00016986,2]
[334002011,1722672659889,-500.0,0.00016986,2]
[334002012,1722672659898,-500.0,0.00016986,2]
[334002013,1722672659908,-500.0,0.00016986,2]
[334002014,1722672659917,-500.0,0.00016986,2]
[334002015,1722672659927,-500.0,0.00016986,2]
[334002016,1722672659936,-450.0,0.00016986,2]
[334002017,1722672659946,-500.0,0.00016986,2]
[334002018,1722672659955,-1218.45,0.00016986,2]
[334002019,1722672659965,-500.0,0.00016986,2]
[334002020,1722672659974,-500.0,0.00016986,2]
[334002021,1722672659983,-527.92,0.00016986,2]
[334002022,1722672659993,-500.0,0.00016986,2]
[334002023,1722672660002,-500.0,0.00016986,2]
[334002024,1722672660011,-500.0,0.00016986,2]
[334002025,1722672660021,-500.0,0.00016986,2]
[334002026,1722672660031,-500.0,0.00016986,2]
[334002027,1722672660040,-611.34,0.00016986,2]
[334002028,1722672660050,-500.0,0.00016986,2]
[334002029,1722672660060,-500.0,0.00016986,2]
[334002030,1722672660070,-508.2450057,0.00016986,2]
[334002031,1722672660079,-500.0,0.00016986,2]
[334002032,1722672660088,-500.0,0.00016986,2]
[334002033,1722672660097,-500.0,0.00016986,2]
[334002034,1722672660107,-661.0,0.00016986,2]
[334002035,1722672660116,-705.81,0.00016986,2]
[334002036,1722672660126,-297.18851269,0.00016986,2]
[334002037,1722672660135,-342.67,0.00016986,2]
[334002038,1722672660145,-500.0,0.00016986,2]
[334002039,1722672660154,-500.0,0.00016986,2]
[334002040,1722672660163,-500.0,0.00016986,2]
[334002041,1722672660173,-500.0,0.00016986,2]
[334002042,1722672660183,-638.82,0.00016986,2]
[334002043,1722672660192,-500.0,0.00016986,2]
[334002044,1722672660205,-500.0,0.00016986,2]
[334002045,1722672660215,-500.0,0.00016986,2]
[334002046,1722672660224,-744.23,0.00016986,2]
[334002047,1722672660234,-500.0,0.00016986,2]
[334002048,1722672660243,-500.0,0.00016986,2]
[334002049,1722672660252,-570.99,0.00016986,2]
[334002050,1722672660262,-727.54,0.00016986,2]
[334002051,1722672660271,-500.0,0.00016986,2]
[334002052,1722672660280,-500.0,0.00016986,2]
[334002053,1722672660289,-617.25,0.00016986,2]
[334002054,1722672660298,-500.0,0.00016986,2]
[334002055,1722672660308,-714.79,0.00016986,2]
[334002056,1722672660317,-556.41,0.00016986,2]
[334002057,1722672660326,-500.0,0.00016986,2]
[334002058,1722672660335,-500.0,0.00016986,2]
[334002059,1722672660345,-500.0,0.00016986,2]
[334002060,1722672660355,-500.0,0.00016986,2]
[334002061,1722672660364,-500.0,0.00016986,2]
[334002062,1722672660374,-788.92,0.00016986,2]
[334002063,1722672660383,-290.12013849,0.00016986,2]
[334002064,1722672660393,-1029.17,0.00016986,2]
[334002065,1722672660402,-381.20845197,0.00016986,2]
[334002066,1722672660412,-500.0,0.00016986,2]
[334002067,1722672660422,-500.0,0.00016986,2]
[334002068,1722672660431,-500.0,0.00016986,2]
[334002069,1722672660441,-710.03,0.00016986,2]
[334002070,1722672660451,-504.5248607,0.00016986,2]
[334002071,1722672660460,-738.88,0.00016986,2]
[334002072,1722672660470,-539.38,0.00016986,2]
[334002073,1722672660480,-808.77,0.00016986,2]
[334002074,1722672660489,-500.0,0.00016986,2]
[334002075,1722672660499,-500.0,0.00016986,2]
[334002076,1722672660512,-500.0,0.00016986,2]
[334002077,1722672660522,-830.0,0.00016986,2]
[334002078,1722672660531,-554.02,0.00016986,2]
[334002079,1722672660541,-500.0,0.00016986,2]
[334002080,1722672660553,-525.28,0.00016986,2]
[334002081,1722672660564,-183.79987457,0.00016986,2]
[334002082,1722672660573,-516.34707968,0.00016986,2]
[334002083,1722672660585,-726.72,0.00016986,2]
[334002084,1722672660595,-500.0,0.00016986,2]
[334002085,1722672660604,-500.0,0.00016986,2]
[334002086,1722672660615,-500.0,0.00016986,2]
[334002087,1722672660625,-663.62,0.00016986,2]
[334002088,1722672660634,-500.0,0.00016986,2]
[334002089,1722672660643,-500.0,0.00016986,2]
[334002090,1722672660652,-547.37,0.00016986,2]
[334002091,1722672660662,-500.0,0.00016986,2]
[334002092,1722672660671,-500.0,0.00016986,2]
[334002093,1722672660680,-658.43,0.00016986,2]
[334002094,1722672660690,-529.53,0.00016986,2]
[334002095,1722672660700,-1319.94,0.00016986,2]
[334002096,1722672660709,-1146.49,0.00016986,2]
[334002097,1722672660719,-4233.34,0.00016986,2]
[334002098,1722672660728,-500.0,0.00016986,2]
[334002099,1722672660737,-955.66,0.00016986,2]
[334002100,1722672660747,-595.12,0.00016986,2]
[334002101,1722672660756,-746.94,0.00016986,2]
[334002102,1722672660765,-673.07,0.00016986,2]
[334002103,1722672660774,-500.0,0.00016986,2]
[334002104,1722672660783,-834.43,0.00016986,2]
[334002105,1722672660793,-9414.57,0.00016986,2]
[334002106,1722672660802,-500.0,0.00016986,2]
[334002107,1722672660811,-500.0,0.00016986,2]
[334002108,1722672660820,-500.0,0.00016986,2]
[334002109,1722672660830,-657.98,0.00016986,2]
[334002110,1722672660839,-1422.26,0.00016986,2]
[334002111,1722672660849,-500.0,0.00016986,2]
[334002112,1722672660858,-684.61,0.00016986,2]
[334002113,1722672660868,-500.0,0.00016986,2]
[334002114,1722672660877,-500.0,0.00016986,2]
[334002115,1722672660886,-500.0,0.00016986,2]
[334002116,1722672660895,-500.0,0.00016986,2]
[334002117,1722672660904,-905.13,0.00016986,2]
[334002118,1722672660914,-500.0,0.00016986,2]
[334002119,1722672660923,-755.85,0.00016986,2]
[334002120,1722672660933,-500.0,0.00016986,2]
[334002121,1722672660944,-500.0,0.00016986,2]
[334002122,1722672660953,-561.29,0.00016986,2]
[334002123,1722672660962,-500.0,0.00016986,2]
[334002124,1722672660971,-500.0,0.00016986,2]
[334002125,1722672660980,-500.0,0.00016986,2]
[334002126,1722672660999,-857.89,0.00016986,2]
[334002127,1722672661008,-42354.3,0.00016986,2]
[334002128,1722672661017,-580.03,0.00016986,2]
[334002129,1722672661027,-5350.45,0.00016986,2]
[334002130,1722672661036,-500.0,0.00016986,2]
[334002131,1722672661045,-585.47325116,0.00016986,2]
[334002132,1722672661054,-728.4,0.00016986,2]
[334002133,1722672661064,-500.0,0.00016986,2]
[334002134,1722672661073,-500.0,0.00016986,2]
[334002135,1722672661082,-504.30147461,0.00016986,2]
[334002136,1722672661092,-500.0,0.00016986,2]
[334002137,1722672661101,-3471.03,0.00016986,2]
[334002138,1722672661110,-609.74,0.00016986,2]
[334002139,1722672661119,-1689.99,0.00016986,2]
[334002140,1722672661128,-500.0,0.00016986,2]
[334002141,1722672661137,-6425.66,0.00016986,2]
[334002142,1722672661147,-648.94,0.00016986,2]
[334002143,1722672661156,-500.0,0.00016986,2]
[334002144,1722672661164,-1670.28,0.00016986,2]
[334002145,1722672661174,-13172.1,0.00016986,2]
[334002146,1722672661183,-6701.04,0.00016986,2]
[334002147,1722672661193,-2424.35,0.00016986,2]
[334002148,1722672661202,-1079.15,0.00016986,2]
[334002149,1722672661211,-697.85,0.00016986,2]
[334002150,1722672661222,-1261.65,0.00016986,2]
[334002151,1722672661231,-500.0,0.00016986,2]
[334002152,1722672661241,-1264.29,0.00016986,2]
[334002153,1722672661250,-500.0,0.00016986,2]
[334002154,1722672661259,-3981.7,0.00016986,2]
[334002155,1722672661268,-500.0,0.00016986,2]
[334002156,1722672661277,-808.41,0.00016986,2]
[334002157,1722672661286,-500.0,0.00016986,2]
[334002158,1722672661295,-9537.11,0.00016986,2]
[334002159,1722672661304,-500.0,0.00016986,2]
[334002160,1722672661314,-873.33,0.00016986,2]
[334002161,1722672661323,-627.46,0.00016986,2]
[334002162,1722672661333,-4527.79,0.00016986,2]
[334002163,1722672661342,-1120.2,0.00016986,2]
[334002164,1722672661352,-500.0,0.00016986,2]
[334002165,1722672661361,-1413.65,0.00016986,2]
[334002166,1722672661370,-500.0,0.00016986,2]
[334002167,1722672661380,-799.1,0.00016986,2]
[334002168,1722672661389,-2582.22,0.00016986,2]
[334002169,1722672661398,-500.0,0.00016986,2]
[334002170,1722672661407,-500.0,0.00016986,2]
[334002171,1722672661420,-500.0,0.00016986,2]
[334002172,1722672661429,-558.9,0.00016986,2]
[334002173,1722672661438,-500.0,0.00016986,2]
[334002174,1722672661447,-4338.65,0.00016986,2]
[334002175,1722672661456,-589.65,0.00016986,2]
[334002176,1722672661466,-500.0,0.00016986,2]
[334002177,1722672661475,-6299.84,0.00016986,2]
[334002178,1722672661484,-500.0,0.00016986,2]
[334002179,1722672661493,-3567.38,0.00016986,2]
[334002180,1722672661506,-504.8,0.00016986,2]
[334002181,1722672661515,-500.0,0.00016986,2]
[334002182,1722672661524,-1132.78,0.00016986,2]
[334002183,1722672661533,-527.09,0.00016986,2]
[334002184,1722672661543,-500.0,0.00016986,2]
[334002185,1722672661552,-500.0,0.00016986,2]
[334002186,1722672661561,-557.75,0.00016986,2]
[334002187,1722672661570,-500.0,0.00016986,2]
[334002188,1722672661581,-500.0,0.00016986,2]
[334002189,1722672661590,-775.61,0.00016986,2]
[334002190,1722672661599,-5075.14,0.00016986,2]
[334002191,1722672661607,-500.0,0.00016986,2]
[334002192,1722672661618,-1597.24,0.00016986,2]
[334002193,1722672661627,-524.51,0.00016986,2]
[334002194,1722672661636,-2236.78,0.00016986,2]
[334002195,1722672661645,-500.0,0.00016986,2]
[334002196,1722672661654,-591.43,0.00016986,2]
[334002197,1722672661663,-739.97,0.00016986,2]
[334002198,1722672661673,-7580.49,0.00016986,2]
[334002199,1722672661682,-1988.37,0.00016986,2]
[334002200,1722672661691,-500.0,0.00016986,2]
[334002201,1722672661702,-1153.18,0.00016986,2]
[334002202,1722672661711,-500.0,0.00016986,2]
[334002203,1722672661722,-1779.35,0.00016986,2]
[334002204,1722672661731,-806.0,0.00016986,2]
[334002205,1722672661740,-520.82,0.00016986,2]
[334002206,1722672661750,-1222.12,0.00016986,2]
[334002207,1722672661759,-500.0,0.00016986,2]
[334002208,1722672661768,-543.96,0.00016986,2]
[334002209,1722672661777,-500.0,0.00016986,2]
[334002210,1722672661787,-500.0,0.00016986,2]
[334002211,1722672661796,-2755.57,0.00016986,2]
[334002212,1722672661806,-1766.59,0.00016986,2]
[334002213,1722672661815,-500.0,0.00016986,2]
[334002214,1722672661825,-500.0,0.00016986,2]
[334002215,1722672661835,-6784.85,0.00016986,2]
[334002216,1722672661844,-500.0,0.00016986,2]
[334002217,1722672661853,-645.76402567,0.00016986,2]
[334002218,1722672661862,-1170.99,0.00016986,2]
[334002219,1722672661871,-500.0,0.00016986,2]
[334002220,1722672661880,-500.0,0.00016986,2]
[334002221,1722672661889,-500.0,0.00016986,2]
[334002222,1722672661898,-1509.0,0.00016986,2]
[334002223,1722672661908,-2272.41,0.00016986,2]
[334002224,1722672661918,-1134.66,0.00016986,2]
[334002225,1722672661927,-788.7,0.00016986,2]
[334002226,1722672661936,-500.0,0.00016986,2]
[334002227,1722672661945,-500.0,0.00016986,2]
[334002228,1722672661954,-500.0,0.00016986,2]
[334002229,1722672661965,-500.0,0.00016986,2]
[334002230,1722672661974,-500.0,0.00016986,2]
[334002231,1722672661983,-500.0,0.00016986,2]
[334002232,1722672661993,-556.92,0.00016986,2]
[334002233,1722672662002,-851.8,0.00016986,2]
[334002234,1722672662011,-500.0,0.00016986,2]
[334002235,1722672662020,-829.82,0.00016986,2]
[334002236,1722672662030,-500.0,0.00016986,2]
[334002237,1722672662039,-978.08,0.00016986,2]
[334002238,1722672662049,-3555.81,0.00016986,2]
[334002239,1722672662059,-1000.11,0.00016986,2]
[334002240,1722672662068,-1173.97,0.00016986,2]
[334002241,1722672662078,-500.0,0.00016986,2]
[334002242,1722672662087,-500.0,0.00016986,2]
[334002243,1722672662096,-500.0,0.00016986,2]
[334002244,1722672662106,-500.0,0.00016986,2]
[334002245,1722672662115,-6514.15,0.00016986,2]
[334002246,1722672662124,-500.0,0.00016986,2]
[334002247,1722672662134,-828.77,0.00016986,2]
[334002248,1722672662143,-1272.15,0.00016986,2]
[334002249,1722672662152,-3333.78,0.00016986,2]
[334002250,1722672662162,-1643.08,0.00016986,2]
[334002251,1722672662171,-2015.77,0.00016986,2]
[334002252,1722672662180,-1598.98,0.00016986,2]
[334002253,1722672662189,-3382.08,0.00016986,2]
[334002254,1722672662199,-1056.18,0.00016986,2]
[334002255,1722672662208,-1410.26,0.00016986,2]
[334002256,1722672662217,-500.0,0.00016986,2]
[334002257,1722672662226,-500.0,0.00016986,2]
[334002258,1722672662235,-657.49,0.00016986,2]
[334002259,1722672662244,-500.0,0.00016986,2]
[334002260,1722672662253,-1314.36,0.00016986,2]
[334002261,1722672662262,-5105.47,0.00016986,2]
[334002262,1722672662271,-1117.0,0.00016986,2]
[334002263,1722672662280,-500.0,0.00016986,2]
[334002264,1722672662290,-863.0,0.00016986,2]
[334002265,1722672662299,-988.31,0.00016986,2]
[334002266,1722672662308,-500.0,0.00016986,2]
[334002267,1722672662318,-588.88,0.00016986,2]
[334002268,1722672662327,-916.53,0.00016986,2]
[334002269,1722672662336,-500.0,0.00016986,2]
[334002270,1722672662345,-3858.07,0.00016986,2]
[334002271,1722672662355,-886.61,0.00016986,2]
[334002272,1722672662364,-2523.24,0.00016986,2]
[334002273,1722672662373,-1144.92,0.00016986,2]
[334002274,1722672662382,-500.0,0.00016986,2]
[334002275,1722672662391,-1055.01,0.00016986,2]
[334002276,1722672662400,-500.0,0.00016986,2]
[334002277,1722672662409,-596.99,0.00016986,2]
[334002278,1722672662418,-500.0,0.00016986,2]
[334002279,1722672662427,-500.0,0.00016986,2]
[334002280,1722672662436,-867.52,0.00016986,2]
[334002281,1722672662445,-758.07,0.00016986,2]
[334002282,1722672662454,-500.0,0.00016986,2]
[334002283,1722672662464,-500.0,0.00016986,2]
[334002284,1722672662473,-1413.54,0.00016986,2]
[334002285,1722672662483,-500.0,0.00016986,2]
[334002286,1722672662492,-626.69,0.00016986,2]
[334002287,1722672662504,-1086.46,0.00016986,2]
[334002288,1722672662518,-500.0,0.00016986,2]
[334002289,1722672662528,-500.0,0.00016986,2]
[334002290,1722672662539,-1048.09,0.00016986,2]
[334002291,1722672662548,-2041.55,0.00016986,2]
[334002292,1722672662558,-945.91,0.00016986,2]
[334002293,1722672662567,-503.04,0.00016986,2]
[334002294,1722672662576,-2243.32,0.00016986,2]
[334002295,1722672662588,-500.0,0.00016986,2]
[334002296,1722672662597,-1876.41,0.00016986,2]
[334002297,1722672662606,-876.92,0.00016986,2]
[334002298,1722672662615,-500.0,0.00016986,2]
[334002299,1722672662624,-500.0,0.00016986,2]
[334002300,1722672662633,-1974.73,0.00016986,2]
[334002301,1722672662643,-596.72,0.00016986,2]
[334002302,1722672662651,-500.0,0.00016986,2]
[334002303,1722672662660,-849.08,0.00016986,2]
[334002304,1722672662669,-1000.0,0.00016986,60]
[334002305,1722672662679,-1836.41,0.00016986,2]
[334002306,1722672662688,-3536.23,0.00016986,2]
[334002307,1722672662698,-1295.33,0.00016986,2]
[334002308,1722672662708,-500.0,0.00016986,2]
[334002309,1722672662717,-2083.37,0.00016986,2]
[334002310,1722672662726,-500.0,0.00016986,2]
[334002311,1722672662735,-500.0,0.00016986,2]
[334002312,1722672662744,-500.0,0.00016986,2]
[334002313,1722672662754,-500.0,0.00016986,2]
[334002314,1722672662764,-500.0,0.00016986,2]
[334002315,1722672662774,-1001.94,0.00016986,2]
[334002316,1722672662783,-3080.78,0.00016986,2]
[334002317,1722672662792,-547.37,0.00016986,2]
[334002318,1722672662802,-1224.2,0.00016986,2]
[334002319,1722672662811,-500.0,0.00016986,2]
[334002320,1722672662820,-500.0,0.00016986,2]
[334002321,1722672662830,-3054.54,0.00016986,2]
[334002322,1722672662839,-1519.85,0.00016986,2]
[334002323,1722672662849,-1194.14,0.00016986,2]
[334002324,1722672662858,-793.38,0.00016986,2]
[334002325,1722672662868,-871.03,0.00016986,2]
[334002326,1722672662878,-500.0,0.00016986,2]
[334002327,1722672662888,-525.65,0.00016986,2]
[334002328,1722672662897,-1267.34,0.00016986,2]
[334002329,1722672662906,-500.0,0.00016986,2]
[334002330,1722672662916,-3366.59,0.00016986,2]
[334002331,1722672662925,-992.94,0.00016986,2]
[334002332,1722672662934,-555.73,0.00016986,2]
[334002333,1722672662944,-550.93,0.00016986,2]
[334002334,1722672662959,-500.0,0.00016986,2]
[334002335,1722672662968,-500.0,0.00016986,2]
[334002336,1722672662978,-642.28,0.00016986,2]
[334002337,1722672662988,-1662.23,0.00016986,2]
[334002338,1722672662997,-1946.82,0.00016986,2]
[334002339,1722672663007,-1212.94,0.00016986,2]
[334002340,1722672663016,-1900.41,0.00016986,2]
[334002341,1722672663026,-500.0,0.00016986,2]
[334002342,1722672663035,-2354.23,0.00016986,2]
[334002343,1722672663045,-937.73,0.00016986,2]
[334002344,1722672663054,-692.84,0.00016986,2]
[334002345,1722672663063,-1192.07,0.00016986,2]
[334002346,1722672663073,-1258.11,0.00016986,2]
[334002347,1722672663082,-500.0,0.00016986,2]
[334002348,1722672663092,-1060.96,0.00016986,2]
[334002349,1722672663102,-4981.79,0.00016986,2]
[334002350,1722672663111,-6100.7,0.00016986,2]
[334002351,1722672663120,-500.0,0.00016986,2]
[334002352,1722672663130,-2170.91,0.00016986,2]
[334002353,1722672663139,-937.04,0.00016986,2]
[334002354,1722672663149,-500.0,0.00016986,2]
[334002355,1722672663159,-2840.72,0.00016986,2]
[334002356,1722672663168,-4003.25,0.00016986,2]
[334002357,1722672663177,-804.77,0.00016986,2]
[334002358,1722672663187,-500.0,0.00016986,2]
[334002359,1722672663196,-500.0,0.00016986,2]
[334002360,1722672663205,-1151.68,0.00016986,2]
[334002361,1722672663215,-2144.3,0.00016986,2]
[334002362,1722672663224,-500.0,0.00016986,2]
[334002363,1722672663233,-721.28,0.00016986,2]
[334002364,1722672663242,-500.0,0.00016986,2]
[334002365,1722672663252,-549.7,0.00016986,2]
[334002366,1722672663261,-1032.34,0.00016986,2]
[334002367,1722672663270,-2037.25,0.00016986,2]
[334002368,1722672663280,-500.0,0.00016986,2]
[334002369,1722672663290,-3499.27,0.00016986,2]
[334002370,1722672663299,-1536.28,0.00016986,2]
[334002371,1722672663309,-928.42,0.00016986,2]
[334002372,1722672663318,-500.0,0.00016986,2]
[334002373,1722672663328,-1037.63,0.00016986,2]
[334002374,1722672663338,-1737.33,0.00016986,2]
[334002375,1722672663347,-1906.6,0.00016986,2]
[334002376,1722672663356,-1095.94,0.00016986,2]
[334002377,1722672663366,-500.0,0.00016986,2]
[334002378,1722672663375,-500.0,0.00016986,2]
[334002379,1722672663385,-663.02,0.00016986,2]
[334002380,1722672663394,-602.45,0.00016986,2]
[334002381,1722672663403,-500.0,0.00016986,2]
[334002382,1722672663413,-1104.11,0.00016986,2]
[334002383,1722672663422,-3795.21,0.00016986,2]
[334002384,1722672663431,-2690.0,0.00016986,2]
[334002385,1722672663441,-217.46780172,0.00016999,2]
[334002386,1722672663450,-587.0,0.00017048,2]
[334002387,1722672663460,-309.49,0.00017115,2]
[334002388,1722672663470,-584.0,0.00017248,2]
[334002389,1722672663479,-500.0,0.0001726,2]
[334002390,1722672663489,-236.87100529,0.0001726,2]
[334002391,1722672663498,-500.0,0.0001726,2]
[334002392,1722672663513,-500.0,0.0001726,2]
[334002393,1722672663522,-500.0,0.0001726,2]
[334002394,1722672663532,-500.0,0.0001726,2]
[334002395,1722672663541,-500.0,0.0001726,2]
[334002396,1722672663551,-500.0,0.0001726,2]
[334002397,1722672663560,-500.0,0.0001726,2]
[334002398,1722672663569,-500.0,0.0001726,2]
[334002399,1722672663580,-500.0,0.0001726,2]
[334002400,1722672663589,-500.0,0.0001726,2]
[334002401,1722672663599,-500.0,0.0001726,2]
[334002402,1722672663608,-500.0,0.0001726,2]
[334002403,1722672663618,-500.0,0.0001726,2]
[334002404,1722672663627,-254.38096985,0.0001726,2]
[334002405,1722672663637,-537.74,0.0001726,2]
[334002406,1722672663646,-500.0,0.0001726,2]
[334002407,1722672663657,-500.0,0.0001726,2]
[334002408,1722672663666,-500.0,0.0001726,2]
[334002409,1722672663676,-907.58,0.0001726,2]
[334002410,1722672663685,-500.0,0.0001726,2]
[334002411,1722672663697,-500.0,0.0001726,2]
[334002412,1722672663708,-500.0,0.0001726,2]
[334002413,1722672663717,-500.0,0.0001726,2]
[334002414,1722672663727,-500.0,0.0001726,2]
[334002415,1722672663736,-500.0,0.0001726,2]
[334002416,1722672663746,-560.39,0.0001726,2]
[334002417,1722672663756,-500.0,0.0001726,2]
[334002418,1722672663766,-500.0,0.0001726,2]
[334002419,1722672663776,-550.32,0.0001726,2]
[334002420,1722672663786,-500.0,0.0001726,2]
[334002421,1722672663796,-548.45,0.0001726,2]
[334002422,1722672663806,-500.0,0.0001726,2]
[334002423,1722672663816,-500.0,0.0001726,2]
[334002424,1722672663825,-500.0,0.0001726,2]
[334002425,1722672663835,-500.0,0.0001726,2]
[334002426,1722672663845,-599.16,0.0001726,2]
[334002427,1722672663854,-500.0,0.0001726,2]
[334002428,1722672663864,-500.0,0.0001726,2]
[334002429,1722672663874,-500.0,0.0001726,2]
[334002430,1722672663884,-500.0,0.0001726,2]
[334002431,1722672663895,-311.31775072,0.0001726,2]
[334002432,1722672663905,-500.0,0.0001726,2]
[334002433,1722672663914,-500.0,0.0001726,2]
[334002434,1722672663924,-528.88,0.0001726,2]
[334002435,1722672663934,-561.29,0.0001726,2]
[334002436,1722672663944,-217.93367624,0.0001726,2]
[334002437,1722672663955,-500.0,0.0001726,2]
[334002438,1722672663964,-500.0,0.0001726,2]
[334002439,1722672663975,-500.0,0.0001726,2]